fUST/lending_fUST_20250730
["ID","MTS","AMOUNT","RATE_DAILY","PERIOD"]
[376193057,1753888247005,-171.461774,0.00022377,7]
[376193059,1753888247014,-151.0,0.00022377,7]
[376193061,1753888247024,-685.45,0.00022377,2]
[376193063,1753888247033,-253.950975,0.00022377,7]
[376193064,1753888247042,-253.950975,0.00022377,7]
[376193066,1753888247051,-1000.0,0.00022419,2]
[376193068,1753888247061,-360.0,0.00022425,2]
[376193070,1753888247071,-2183.31810187,0.00022427,2]
[376193072,1753888247080,-158.44706916,0.00022456,2]
[376193074,1753888247089,-1048.02,0.00022464,2]
[376193075,1753888247098,-662.05,0.00022464,2]
[376193077,1753888247107,-679.29,0.00022464,2]
[376193079,1753888247117,-202.18548594,0.00022465,7]
[376193081,1753888247126,-1574.55475338,0.00022482,2]
[376193083,1753888247135,-500.0,0.00022495,2]
[376193084,1753888247144,-500.0,0.00022495,2]
[376193086,1753888247154,-502.49019685,0.00022495,2]
[376193088,1753888247163,-1000.0,0.0002251,2]
[376193090,1753888247172,-1073.99,0.00022517,2]
[376193092,1753888247181,-628.37,0.00022517,2]
[376193094,1753888247191,-460.0,0.00022517,2]
[376193095,1753888247200,-460.0,0.00022517,2]
[376193097,1753888247210,-1112.31,0.00022518,2]
[376193099,1753888247219,-933.64,0.00022518,2]
[376193101,1753888247228,-460.0,0.00022519,2]
[376193103,1753888247241,-460.0,0.00022519,2]
[376193105,1753888247251,-326.78,0.00022519,2]
[376193107,1753888247260,-1000.0,0.00022542,2]
[376193108,1753888247271,-248.11198407,0.0002255,2]
[376193110,1753888247283,-198.04,0.00022587,2]
[376193112,1753888247292,-443.28162109,0.00022588,2]
[376193114,1753888247302,-3228.5,0.00022588,2]
[376193116,1753888247313,-460.0,0.00022588,2]
[376193118,1753888247323,-183.60100721,0.00022629,2]
[376193127,1753888247411,-294.0198304,0.00022629,2]
[376193129,1753888247420,-523.69418917,0.00022629,2]
[376193130,1753888247430,-175.0,0.0002264,4]
[376193132,1753888247440,-151.0,0.0002265,7]
[376193134,1753888247449,-151.0,0.0002265,7]
[376193136,1753888247458,-206.831324,0.0002265,7]
[376193138,1753888247467,-206.831324,0.0002265,7]
[376193140,1753888247477,-329.520935,0.0002265,7]
[376193141,1753888247487,-329.520935,0.0002265,7]
[376193143,1753888247497,-706.15,0.0002265,2]
[376193145,1753888247506,-151.0,0.0002265,7]
[376193147,1753888247515,-460.0,0.0002265,2]
[376193149,1753888247524,-151.0,0.0002265,7]
[376193151,1753888247534,-151.0,0.00022651,7]
[376193153,1753888247544,-151.0,0.00022651,7]
[376193154,1753888247553,-151.0,0.00022651,7]
[376193156,1753888247563,-151.0,0.00022651,7]
[376193158,1753888247572,-685.45,0.00022651,2]
[376193160,1753888247581,-232.871932,0.00022652,7]
[376193162,1753888247591,-260.510646,0.00022663,2]
[376193164,1753888247600,-725.52832139,0.0002269,2]
[376193166,1753888247610,-202.18548594,0.00022726,7]
[376193167,1753888247619,-1048.02,0.00022738,2]
[376193169,1753888247629,-662.05,0.00022738,2]
[376193171,1753888247638,-679.29,0.00022738,2]
[376193173,1753888247647,-1073.99,0.00022791,2]
[376193175,1753888247656,-628.37,0.00022791,2]
[376193177,1753888247666,-460.0,0.00022791,2]
[376193179,1753888247675,-460.0,0.00022791,2]
[376193180,1753888247684,-1112.31,0.00022792,2]
[376193182,1753888247696,-933.64,0.00022792,2]
[376193184,1753888247705,-460.0,0.00022793,2]
[376193186,1753888247715,-376.0645483,0.00022793,2]
[376193188,1753888247724,-151.0,0.00022847,7]
[376193190,1753888247734,-442.982467,0.00022861,7]
[376193192,1753888247743,-442.982467,0.00022861,7]
[376193193,1753888247753,-3228.5,0.00022862,2]
[376193195,1753888247764,-460.0,0.00022862,2]
[376193197,1753888247773,-706.15,0.00022924,2]
[376193199,1753888247783,-460.0,0.00022924,2]
[376193202,1753888247792,-167.414223,0.00022925,7]
[376193204,1753888247801,-167.414223,0.00022925,7]
[376193206,1753888247810,-685.45,0.00022925,2]
[376193208,1753888247819,-196.061424,0.00022925,7]
[376193209,1753888247828,-196.061424,0.00022925,7]
[376193211,1753888247838,-1500.0,0.00022967,2]
[376193213,1753888247847,-460.0,0.00022973,2]
[376193215,1753888247856,-175.0,0.00022975,5]
[376193217,1753888247866,-202.18548594,0.00022987,8]
[376193219,1753888247875,-1130.94,0.00023,2]
[376193221,1753888247885,-160.0,0.00023,2]
[376193223,1753888247895,-1048.02,0.00023012,2]
[376193224,1753888247904,-662.05,0.00023012,2]
[376193226,1753888247914,-679.29,0.00023012,2]
[376193228,1753888247923,-1000.0,0.00023043,2]
[376193230,1753888247932,-1000.0,0.00023043,2]
[376193232,1753888247941,-1500.0,0.00023058,2]
[376193234,1753888247950,-1073.99,0.00023065,2]
[376193236,1753888247960,-628.37,0.00023065,2]
[376193237,1753888247969,-460.0,0.00023065,2]
[376193239,1753888247978,-460.0,0.00023065,2]
[376193241,1753888247989,-1112.31,0.00023066,2]
[376193243,1753888247999,-933.64,0.00023066,2]
[376193245,1753888248008,-240.386221,0.00023066,7]
[376193247,1753888248017,-240.386221,0.00023066,7]
[376193249,1753888248029,-151.0,0.00023066,7]
[376193251,1753888248038,-460.0,0.00023067,2]
[376193252,1753888248047,-1500.0,0.0002309,2]
[376193254,1753888248057,-3228.5,0.00023136,2]
[376193256,1753888248067,-460.0,0.00023136,2]
[376193258,1753888248076,-381.0,0.00023164,2]
[376193260,1753888248086,-706.15,0.00023198,2]
[376193262,1753888248095,-460.0,0.00023198,2]
[376193264,1753888248104,-685.45,0.00023199,2]
[376193266,1753888248114,-162.0,0.000232,10]
[376193267,1753888248124,-151.0,0.000232,7]
[376193269,1753888248133,-151.0,0.000232,7]
[376193271,1753888248142,-3737.84,0.000232,7]
[376193273,1753888248151,-500.0,0.00023201,8]
[376193275,1753888248160,-381.0,0.00023232,2]
[376193277,1753888248170,-381.0,0.00023244,2]
[376193278,1753888248179,-202.18548594,0.00023248,8]
[376193280,1753888248188,-381.0,0.00023267,2]
[376193282,1753888248198,-1048.02,0.00023286,2]
[376193285,1753888248213,-662.05,0.00023286,2]
[376193287,1753888248229,-679.29,0.00023286,2]
[376193290,1753888248246,-500.0,0.00023287,2]
[376193292,1753888248259,-74678.15,0.000233,2]
[376193294,1753888248276,-151.0,0.000233,7]
[376193297,1753888248292,-151.0,0.000233,7]
[376193299,1753888248306,-151.0,0.000233,7]
[376193301,1753888248323,-206.831324,0.000233,7]
[376193304,1753888248339,-206.831324,0.000233,7]
[376193306,1753888248355,-151.0,0.000233,7]
[376193308,1753888248370,-154.317516,0.000233,8]
[376193310,1753888248385,-329.520935,0.000233,7]
[376193313,1753888248400,-329.520935,0.000233,7]
[376193315,1753888248413,-179.755562,0.000233,7]
[376193317,1753888248425,-179.755562,0.000233,7]
[376193319,1753888248438,-171.461774,0.000233,7]
[376193321,1753888248454,-167.414223,0.000233,7]
[376193324,1753888248469,-171.461774,0.000233,7]
[376193326,1753888248483,-167.414223,0.000233,7]
[376193328,1753888248501,-151.0,0.000233,7]
[376193331,1753888248516,-151.0,0.000233,7]
[376193333,1753888248527,-151.0,0.000233,7]
[376193335,1753888248539,-442.982467,0.000233,7]
[376193337,1753888248555,-442.982467,0.000233,7]
[376193339,1753888248570,-253.950975,0.000233,7]
[376193341,1753888248581,-253.950975,0.000233,7]
[376193343,1753888248594,-196.061424,0.000233,7]
[376193346,1753888248608,-196.061424,0.000233,7]
[376193348,1753888248620,-240.386221,0.000233,7]
[376193350,1753888248630,-240.386221,0.000233,7]
[376193352,1753888248643,-297.668888,0.000233,7]
[376193354,1753888248656,-175.0,0.0002331,5]
[376193356,1753888248668,-2200.0,0.0002332,2]
[376193358,1753888248682,-1073.99,0.00023339,2]
[376193361,1753888248694,-628.37,0.00023339,2]
[376193363,1753888248706,-460.0,0.00023339,2]
[376193365,1753888248719,-460.0,0.00023339,2]
[376193367,1753888248730,-1112.31,0.0002334,2]
[376193370,1753888248744,-933.64,0.0002334,2]
[376193372,1753888248757,-460.0,0.00023341,2]
[376193374,1753888248769,-381.0,0.00023356,2]
[376193377,1753888248782,-381.0,0.00023361,2]
[376193379,1753888248795,-1495.97,0.000234,7]
[376193381,1753888248807,-12105.62,0.000234,7]
[376193384,1753888248819,-3228.5,0.0002341,2]
[376193386,1753888248831,-460.0,0.0002341,2]
[376193388,1753888248843,-381.0,0.00023417,2]
[376193390,1753888248855,-381.0,0.0002342,2]
[376193393,1753888248866,-381.0,0.00023427,2]
[376193395,1753888248879,-587.0,0.00023459,2]
[376193397,1753888248891,-706.15,0.00023472,2]
[376193399,1753888248903,-460.0,0.00023472,2]
[376193402,1753888248915,-685.45,0.00023473,2]
[376193404,1753888248927,-150.0,0.000235,5]
[376193406,1753888248939,-202.18548594,0.00023509,9]
[376193409,1753888248952,-2000.0,0.00023515,2]
[376193411,1753888248964,-560.0,0.00023521,2]
[376193413,1753888248976,-381.0,0.00023538,2]
[376193415,1753888248989,-1048.02,0.0002356,2]
[376193418,1753888249002,-662.05,0.0002356,2]
[376193419,1753888249014,-679.29,0.0002356,2]
[376193420,1753888249026,-200.0,0.00023561,2]
[376193421,1753888249039,-200.0,0.00023561,2]
[376193422,1753888249051,-200.0,0.00023561,2]
[376193423,1753888249064,-200.0,0.00023561,2]
[376193424,1753888249077,-200.0,0.00023561,2]
[376193425,1753888249090,-200.0,0.00023561,2]
[376193426,1753888249103,-200.0,0.00023561,2]
[376193427,1753888249115,-200.0,0.00023561,2]
[376193428,1753888249128,-200.0,0.00023561,2]
[376193429,1753888249140,-200.0,0.00023561,2]
[376193430,1753888249154,-200.0,0.00023561,2]
[376193431,1753888249167,-200.0,0.00023561,2]
[376193432,1753888249180,-1500.0,0.00023591,2]
[376193433,1753888249193,-2000.0,0.00023606,2]
[376193434,1753888249206,-153.0,0.00023612,2]
[376193435,1753888249218,-153.0,0.00023612,2]
[376193436,1753888249231,-153.0,0.00023612,2]
[376193437,1753888249245,-153.0,0.00023612,2]
[376193438,1753888249255,-135901.3498768,0.00023613,2]
[376193439,1753888249397,-1073.99,0.00023613,2]
[376193440,1753888249414,-628.37,0.00023613,2]
[376193441,1753888249423,-460.0,0.00023613,2]
[376193442,1753888249433,-460.0,0.00023613,2]
[376193443,1753888249442,-1112.31,0.00023614,2]
[376193445,1753888249452,-933.64,0.00023614,2]
[376193446,1753888249461,-460.0,0.00023615,2]
[376193448,1753888249470,-1026.51119227,0.00023638,2]
[376193449,1753888249480,-175.0,0.00023645,5]
[376193451,1753888249491,-200.0,0.00023684,2]
[376193453,1753888249500,-3228.5,0.00023684,2]
[376193455,1753888249510,-460.0,0.00023684,2]
[376193457,1753888249519,-920.0,0.00023698,2]
[376193459,1753888249529,-151.0,0.000237,7]
[376193461,1753888249538,-151.0,0.000237,7]
[376193462,1753888249547,-706.15,0.00023746,2]
[376193465,1753888249557,-460.0,0.00023746,2]
[376193467,1753888249566,-685.45,0.00023747,2]
[376193469,1753888249575,-381.0,0.00023751,2]
[376193471,1753888249585,-202.18548594,0.0002377,9]
[376193473,1753888249594,-381.0,0.00023771,2]
[376193475,1753888249604,-2347.7,0.00023792,7]
[376193477,1753888249613,-151.0,0.000238,9]
[376193479,1753888249622,-1048.02,0.00023834,2]
[376193481,1753888249631,-662.05,0.00023834,2]
[376193483,1753888249640,-679.29,0.00023834,2]
[376193485,1753888249650,-151.0,0.00023876,7]
[376193487,1753888249659,-151.0,0.00023876,7]
[376193489,1753888249668,-151.0,0.00023876,7]
[376193491,1753888249677,-154.317516,0.00023887,3]
[376193493,1753888249688,-1073.99,0.00023887,2]
[376193495,1753888249697,-628.37,0.00023887,2]
[376193497,1753888249706,-460.0,0.00023887,2]
[376193499,1753888249716,-460.0,0.00023887,2]
[376193501,1753888249726,-1112.31,0.00023888,2]
[376193503,1753888249736,-933.64,0.00023888,2]
[376193505,1753888249745,-460.0,0.00023889,2]
[376193507,1753888249755,-442.982467,0.00023889,7]
[376193509,1753888249764,-442.98246373,0.00023889,7]
[376193511,1753888249773,-2347.7,0.00023892,7]
[376193513,1753888249783,-800.0,0.00023893,2]
[376193515,1753888249792,-154.317516,0.00023895,5]
[376193517,1753888249801,-200.0,0.00023958,2]
[376193519,1753888249810,-151.0,0.00023958,7]
[376193521,1753888249818,-151.0,0.00023958,7]
[376193523,1753888249828,-179.755562,0.00023958,7]
[376193525,1753888249837,-179.755562,0.00023958,7]
[376193526,1753888249846,-171.461774,0.00023958,7]
[376193529,1753888249856,-171.461774,0.00023958,7]
[376193531,1753888249865,-249.198507,0.00023958,7]
[376193532,1753888249874,-253.950975,0.00023958,7]
[376193535,1753888249883,-253.950975,0.00023958,7]
[376193536,1753888249893,-3228.5,0.00023958,2]
[376193539,1753888249903,-460.0,0.00023958,2]
[376193541,1753888249912,-500.0,0.00023973,2]
[376193542,1753888249921,-167.414223,0.00023973,7]
[376193544,1753888249930,-167.414223,0.00023973,7]
[376193546,1753888249940,-196.061424,0.00023973,7]
[376193548,1753888249949,-196.061424,0.00023973,7]
[376193550,1753888249958,-175.0,0.0002398,5]
[376193552,1753888249968,-151.0,0.0002399,7]
[376193554,1753888249977,-151.0,0.0002399,7]
[376193556,1753888249988,-452.868494,0.0002399,7]
[376193558,1753888249998,-452.868494,0.0002399,7]
[376193561,1753888250007,-151.0,0.0002399,7]
[376193562,1753888250016,-151.0,0.0002399,7]
[376193563,1753888250025,-2347.7,0.00023992,7]
[376193565,1753888250034,-160.0,0.00024,7]
[376193567,1753888250044,-706.15,0.0002402,2]
[376193569,1753888250053,-460.0,0.0002402,2]
[376193571,1753888250063,-685.45,0.00024021,2]
[376193573,1753888250073,-202.18548594,0.0002403,10]
[376193575,1753888250082,-151.0,0.00024052,15]
[376193578,1753888250091,-151.0,0.00024052,15]
[376193580,1753888250101,-258.15145505,0.00024052,15]
[376193582,1753888250110,-2500.0,0.00024063,2]
[376193584,1753888250120,-660.0,0.00024069,2]
[376193586,1753888250129,-381.0,0.00024086,2]
[376193588,1753888250138,-2347.7,0.00024092,7]
[376193590,1753888250147,-1525.955396,0.000241,2]
[376193592,1753888250157,-1048.02,0.00024108,2]
[376193594,1753888250166,-662.05,0.00024108,2]
[376193596,1753888250175,-679.29,0.00024108,2]
[376193597,1753888250185,-2000.0,0.00024139,2]
[376193599,1753888250194,-2500.0,0.00024154,2]
[376193601,1753888250203,-1073.99,0.00024161,2]
[376193603,1753888250211,-628.37,0.00024161,2]
[376193605,1753888250220,-460.0,0.00024161,2]
[376193607,1753888250230,-460.0,0.00024161,2]
[376193609,1753888250242,-1112.31,0.00024162,2]
[376193611,1753888250252,-933.64,0.00024162,2]
[376193613,1753888250266,-460.0,0.00024163,2]
[376193615,1753888250280,-2347.7,0.00024192,7]
[376193617,1753888250289,-2000.0,0.000242,2]
[376193619,1753888250299,-151.0,0.000242,8]
[376193621,1753888250308,-151.0,0.000242,7]
[376193623,1753888250319,-151.0,0.000242,7]
[376193625,1753888250328,-206.831324,0.000242,7]
[376193627,1753888250337,-206.831324,0.000242,7]
[376193629,1753888250348,-154.317516,0.000242,5]
[376193631,1753888250358,-329.520935,0.000242,7]
[376193633,1753888250368,-329.520935,0.000242,7]
[376193635,1753888250377,-381.0,0.00024222,2]
[376193637,1753888250387,-232.38,0.00024225,2]
[376193639,1753888250396,-200.0,0.00024232,2]
[376193641,1753888250406,-3228.5,0.00024232,2]
[376193643,1753888250415,-460.0,0.00024232,2]
[376193645,1753888250426,-202.18548594,0.00024291,10]
[376193647,1753888250435,-2347.7,0.00024292,7]
[376193649,1753888250444,-706.15,0.00024294,2]
[376193651,1753888250453,-454.28,0.00024294,2]
[376193653,1753888250463,-685.45,0.00024295,2]
[376193655,1753888250472,-151.0,0.000243,5]
[376193657,1753888250482,-154.317516,0.00024309,2]
[376193659,1753888250494,-175.0,0.00024315,6]
[376193661,1753888250504,-200.0,0.00024316,15]
[376193663,1753888250514,-200.0,0.00024316,15]
[376193665,1753888250523,-200.0,0.00024316,15]
[376193667,1753888250532,-200.0,0.00024316,15]
[376193669,1753888250542,-200.0,0.00024316,15]
[376193671,1753888250551,-200.0,0.00024316,15]
[376193673,1753888250560,-200.0,0.00024316,15]
[376193675,1753888250569,-200.0,0.00024316,15]
[376193677,1753888250578,-200.0,0.00024316,15]
[376193679,1753888250588,-200.0,0.00024316,15]
[376193681,1753888250597,-200.0,0.00024316,15]
[376193683,1753888250606,-200.0,0.00024316,15]
[376193685,1753888250615,-151.0,0.00024326,15]
[376193687,1753888250624,-381.0,0.00024342,2]
[376193689,1753888250634,-154.317516,0.0002436,9]
[376193691,1753888250643,-381.0,0.00024366,2]
[376193693,1753888250652,-1048.02,0.00024382,2]
[376193695,1753888250662,-662.05,0.00024382,2]
[376193698,1753888250672,-679.29,0.00024382,2]
[376193700,1753888250681,-381.0,0.00024384,2]
[376193701,1753888250690,-2347.7,0.00024392,7]
[376193703,1753888250699,-74678.15,0.000244,2]
[376193705,1753888250708,-151.0,0.000244,7]
[376193707,1753888250717,-3737.84,0.000244,7]
[376193709,1753888250726,-151.0,0.000244,7]
[376193711,1753888250737,-1500.0,0.000244,14]
[376193713,1753888250746,-1500.0,0.000244,14]
[376193716,1753888250755,-1500.0,0.000244,14]
[376193717,1753888250764,-1500.0,0.000244,14]
[376193719,1753888250773,-1500.0,0.000244,14]
[376193721,1753888250782,-1500.0,0.000244,14]
[376193723,1753888250791,-1036.18042,0.000244,14]
[376193725,1753888250801,-207.42519,0.000244,7]
[376193727,1753888250809,-206.831324,0.000244,7]
[376193729,1753888250819,-206.831324,0.000244,7]
[376193731,1753888250828,-329.520935,0.000244,7]
[376193733,1753888250837,-329.520935,0.000244,7]
[376193735,1753888250846,-179.755562,0.000244,7]
[376193737,1753888250855,-179.755562,0.000244,7]
[376193739,1753888250864,-171.461774,0.000244,7]
[376193741,1753888250873,-167.414223,0.000244,7]
[376193743,1753888250883,-171.461774,0.000244,7]
[376193745,1753888250892,-167.414226,0.000244,7]
[376193747,1753888250901,-253.950975,0.000244,7]
[376193749,1753888250910,-253.950975,0.000244,7]
[376193751,1753888250919,-196.061424,0.000244,7]
[376193753,1753888250929,-196.061428,0.000244,7]
[376193755,1753888250938,-1200.0,0.00024424,2]
[376193757,1753888250948,-600.0,0.00024426,2]
[376193759,1753888250957,-153.0,0.00024434,2]
[376193761,1753888250966,-153.0,0.00024434,2]
[376193763,1753888250975,-153.0,0.00024434,2]
[376193765,1753888250984,-153.0,0.00024434,2]
[376193767,1753888250994,-153.0,0.00024434,2]
[376193769,1753888251003,-153.0,0.00024434,2]
[376193771,1753888251012,-153.0,0.00024434,2]
[376193773,1753888251022,-153.0,0.00024434,2]
[376193775,1753888251031,-153.0,0.00024434,2]
[376193777,1753888251041,-307.6429418,0.00024434,2]
[376193779,1753888251050,-153.0,0.00024434,2]
[376193781,1753888251059,-153.0,0.00024434,2]
[376193783,1753888251069,-1073.99,0.00024435,2]
[376193785,1753888251078,-628.37,0.00024435,2]
[376193787,1753888251087,-489.44,0.00024435,2]
[376193789,1753888251096,-460.0,0.00024435,2]
[376193791,1753888251106,-460.0,0.00024436,2]
[376193793,1753888251115,-1112.31,0.00024436,2]
[376193795,1753888251125,-933.64,0.00024436,2]
[376193797,1753888251134,-17822.48017942,0.0002445,7]
[376193799,1753888251144,-500.0,0.00024472,2]
[376193801,1753888251153,-500.0,0.00024473,2]
[376193803,1753888251163,-200.0,0.00024473,2]
[376193805,1753888251172,-154.317516,0.00024483,3]
[376193807,1753888251182,-2347.7,0.00024492,7]
[376193809,1753888251191,-151.0,0.000245,7]
[376193811,1753888251201,-600.0,0.000245,2]
[376193813,1753888251210,-330.51165836,0.00024506,2]
[376193815,1753888251220,-3228.5,0.00024506,2]
[376193817,1753888251230,-460.0,0.00024506,2]
[376193819,1753888251242,-573.21728915,0.00024544,2]
[376193821,1753888251252,-381.0,0.00024545,2]
[376193823,1753888251262,-600.0,0.00024546,2]
[376193825,1753888251273,-151.0,0.0002455,7]
[376193826,1753888251284,-228.557394,0.0002455,7]
[376193828,1753888251294,-3991.22055632,0.0002455,2]
[376193830,1753888251303,-202.18548594,0.00024552,11]
[376193832,1753888251314,-600.0,0.00024556,2]
[376193834,1753888251323,-1000.0,0.0002456,2]
[376193836,1753888251334,-1200.0,0.00024562,2]
[376193838,1753888251343,-179.755562,0.00024568,7]
[376193840,1753888251354,-179.755562,0.00024568,7]
[376193842,1753888251363,-171.461774,0.00024568,7]
[376193844,1753888251373,-171.461774,0.00024568,7]
[376193846,1753888251382,-706.15,0.00024568,2]
[376193848,1753888251392,-253.950975,0.00024568,7]
[376193850,1753888251401,-253.950975,0.00024568,7]
[376193852,1753888251411,-685.45,0.00024569,2]
[376193854,1753888251421,-500.0,0.00024573,2]
[376193856,1753888251431,-1200.0,0.00024577,2]
[376193858,1753888251440,-381.0,0.0002458,2]
[376193860,1753888251450,-1000.0,0.00024584,2]
[376193862,1753888251460,-2347.7,0.00024592,7]
[376193864,1753888251470,-600.0,0.00024593,2]
[376193866,1753888251480,-198.0,0.000246,15]
[376193868,1753888251492,-151.0,0.000246,7]
[376193870,1753888251502,-151.0,0.000246,7]
[376193872,1753888251512,-1495.97,0.000246,7]
[376193874,1753888251522,-12105.62,0.000246,7]
[376193876,1753888251532,-151.0,0.000246,7]
[376193878,1753888251542,-296.32854,0.000246,7]
[376193880,1753888251552,-206.831324,0.000246,7]
[376193882,1753888251562,-206.831324,0.000246,7]
[376193884,1753888251571,-329.520935,0.000246,7]
[376193886,1753888251581,-329.520935,0.000246,7]
[376193888,1753888251590,-1000.0,0.000246,2]
[376193890,1753888251600,-800.0,0.00024605,2]
[376193892,1753888251609,-869.79309447,0.00024611,2]
[376193894,1753888251620,-760.0,0.00024617,2]
[376193906,1753888251721,-600.0,0.0002464,2]
[376193908,1753888251731,-112484.72431341,0.0002465,2]
[376193910,1753888251744,-294632.19875833,0.0002465,2]
[376193912,1753888251753,-502.86218743,0.0002465,2]
[376193914,1753888251762,-151.0,0.0002465,7]
[376193916,1753888251772,-151.0,0.0002465,7]
[376193918,1753888251781,-151.0,0.0002465,7]
[376193921,1753888251790,-151.0,0.0002465,7]
[376193923,1753888251811,-151.0,0.0002465,7]
[376193925,1753888251821,-151.0,0.0002465,7]
[376193927,1753888251831,-197.343368,0.0002465,7]
[376193929,1753888251840,-151.0,0.0002465,7]
[376193931,1753888251850,-151.0,0.0002465,7]
[376193933,1753888251859,-151.0,0.0002465,7]
[376193936,1753888251869,-151.0,0.0002465,7]
[376193938,1753888251878,-151.0,0.0002465,7]
[376193940,1753888251888,-151.0,0.0002465,7]
[376193942,1753888251897,-151.0,0.0002465,7]
[376193944,1753888251907,-152.121527,0.0002465,7]
[376193946,1753888251916,-151.0,0.0002465,7]
[376193948,1753888251925,-151.0,0.0002465,7]
[376193950,1753888251935,-151.0,0.0002465,7]
[376193952,1753888251944,-151.0,0.0002465,7]
[376193954,1753888251954,-151.0,0.0002465,7]
[376193956,1753888251964,-151.0,0.0002465,7]
[376193958,1753888251974,-151.0,0.0002465,7]
[376193960,1753888251983,-151.0,0.0002465,7]
[376193962,1753888251994,-151.648838,0.0002465,7]
[376193964,1753888252003,-151.0,0.0002465,7]
[376193966,1753888252013,-151.0,0.0002465,7]
[376193968,1753888252022,-151.0,0.0002465,7]
[376193970,1753888252033,-151.0,0.0002465,7]
[376193972,1753888252042,-151.0,0.0002465,7]
[376193974,1753888252052,-151.0,0.0002465,7]
[376193976,1753888252062,-151.0,0.0002465,7]
[376193978,1753888252071,-151.0,0.0002465,7]
[376193981,1753888252081,-203.780256,0.0002465,7]
[376193983,1753888252091,-166.383044,0.0002465,7]
[376193985,1753888252100,-245.0,0.0002465,7]
[376193987,1753888252110,-373.6856005,0.0002465,2]
[376193989,1753888252120,-151.0,0.0002465,7]
[376193991,1753888252129,-151.0,0.0002465,7]
[376193993,1753888252140,-151.0,0.0002465,7]
[376193995,1753888252149,-151.0,0.0002465,7]
[376193997,1753888252159,-151.0,0.0002465,7]
[376193999,1753888252169,-151.0,0.0002465,7]
[376194001,1753888252179,-151.0,0.0002465,7]
[376194003,1753888252188,-500.0,0.0002465,2]
[376194005,1753888252198,-567.96037893,0.0002465,3]
[376194007,1753888252208,-151.0,0.0002465,7]
[376194009,1753888252217,-151.0,0.0002465,7]
[376194011,1753888252227,-452.868494,0.0002465,7]
[376194014,1753888252238,-452.868494,0.0002465,7]
[376194016,1753888252248,-452.868494,0.0002465,7]
[376194018,1753888252257,-452.868494,0.0002465,7]
[376194020,1753888252267,-151.0,0.0002465,7]
[376194021,1753888252280,-151.0,0.0002465,7]
[376194022,1753888252290,-151.0,0.0002465,7]
[376194023,1753888252299,-151.0,0.0002465,7]
[376194024,1753888252309,-206.831324,0.0002465,7]
[376194025,1753888252319,-206.831324,0.0002465,7]
[376194026,1753888252329,-206.831324,0.0002465,7]
[376194027,1753888252338,-206.831321,0.0002465,7]
[376194028,1753888252348,-329.520935,0.0002465,7]
[376194029,1753888252359,-329.520935,0.0002465,7]
[376194030,1753888252368,-329.520935,0.0002465,7]
[376194031,1753888252378,-329.52094,0.0002465,7]
[376194032,1753888252387,-179.755562,0.0002465,7]
[376194033,1753888252397,-179.75557,0.0002465,7]